lending/lending_fUSD_20240610
["ID","MTS","AMOUNT","RATE_DAILY","PERIOD"]
[328922347,1717996232677,-29320.42431353,0.0001945,2]
[328922348,1717996232686,-1261.68491892,0.00019722,2]
[328922349,1717996232696,-1277.25177394,0.00019722,2]
[328922350,1717996232706,-6105.40173,0.00019723,2]
[328922351,1717996232716,-238.21449077,0.00019723,2]
[328922352,1717996232726,-345.57209114,0.00019723,2]
[328922353,1717996232735,-792.46810918,0.00019723,2]
[328922354,1717996232745,-170.66232196,0.00019724,2]
[328922355,1717996232755,-333.98930856,0.00019724,2]
[328922356,1717996232950,-3384.77160162,0.00019725,2]
[328922357,1717996232970,-864.99778559,0.0002,2]
[328922358,1717996232980,-226.69645122,0.000201,2]
[328922359,1717996232993,-250.0,0.0002103,2]
[328922360,1717996233003,-150.0,0.00021081,2]
[328922361,1717996233012,-1640.26161659,0.00021151,2]
[328922362,1717996233022,-23900.0,0.00021152,2]
[328922363,1717996233031,-517.393,0.00021634,2]
[328922364,1717996233043,-445.0,0.00021634,2]
[328922365,1717996233052,-2156.85,0.00021634,2]
[328922366,1717996233062,-544.713,0.00021634,2]
[328922367,1717996233071,-1303.0,0.00021634,2]
[328922368,1717996233082,-250.0,0.00022113,2]
[328922369,1717996233092,-200.0,0.00022124,2]
[328922370,1717996233101,-277.73,0.00022153,2]
[328922371,1717996233111,-544.28,0.00022181,2]
[328922372,1717996233121,-1000.0,0.00022573,2]
[328922373,1717996233131,-382.84586015,0.00022575,2]
[328922374,1717996233141,-15755.5456,0.0002258,2]
[328922375,1717996233150,-500.0,0.00022602,2]
[328922376,1717996233160,-611.99412193,0.00022602,2]
[328922377,1717996233170,-3000.0,0.0002267,2]
[328922378,1717996233180,-760.55,0.0002267,3]
[328922379,1717996233190,-6053.94,0.00022678,2]
[328922380,1717996233200,-35813.28475318,0.0002268,2]
[328922381,1717996233209,-413.92057913,0.00022696,2]
[328922382,1717996233219,-3063.88513928,0.00022899,2]
[328922383,1717996233229,-951.78204638,0.000229,2]
[328922384,1717996233238,-155.0,0.000229,2]
[328922385,1717996233248,-2000.0,0.000229,2]
[328922386,1717996233258,-200.0,0.000229,2]
[328922387,1717996233268,-3510.5234,0.000229,2]
[328922388,1717996233278,-374.8776,0.000229,2]
[328922389,1717996233289,-163.94,0.00022909,2]
[328922390,1717996233299,-25012.96228075,0.00023,2]
[328922402,1717996233610,-15047.19030228,0.00023,2]
[328922405,1717996233620,-320.0,0.00023,10]
[328922408,1717996233629,-211.1,0.0002304,2]
[328922411,1717996233639,-2164.0,0.000231,3]
[328922413,1717996233649,-606.0,0.000231,3]
[328922415,1717996233658,-200.0,0.00023129,2]
[328922417,1717996233668,-2120.96108369,0.000236,2]
[328922419,1717996233678,-500.0,0.00023698,2]
[328922421,1717996233687,-898.0,0.000237,2]
[328922423,1717996233697,-708.0,0.000237,2]
[328922425,1717996233707,-157.3,0.00024384,2]
[328922427,1717996233717,-479.09,0.00024384,2]
[328922429,1717996233727,-157.89,0.0002447,2]
[328922431,1717996233736,-157.89,0.00024483,2]
[328922433,1717996233745,-157.89,0.00024497,2]
[328922435,1717996233755,-151.0,0.00024503,5]
[328922437,1717996233764,-157.89,0.00024511,2]
[328922439,1717996233774,-157.89,0.00024524,2]
[328922441,1717996233783,-157.89,0.00024538,2]
[328922443,1717996233797,-157.89,0.00024551,2]
[328922445,1717996233806,-157.89,0.00024565,2]
[328922446,1717996233816,-157.89,0.00024578,2]
[328922447,1717996233825,-157.89,0.00024592,2]
[328922448,1717996233834,-167.55,0.00024691,2]
[328922449,1717996233843,-199.0,0.00024742,2]
[328922450,1717996233852,-500.0,0.00024794,2]
[328922451,1717996233862,-3561.79289714,0.00024798,2]
[328922452,1717996233872,-3561.79289708,0.00024798,2]
[328922453,1717996233882,-3561.79289708,0.00024798,2]
[328922454,1717996233891,-1751.08860749,0.00024799,2]
[328922455,1717996233901,-1751.0886074,0.00024799,2]
[328922456,1717996233913,-1751.0886074,0.00024799,2]
[328922457,1717996233925,-654.5863,0.000248,2]
[328922458,1717996233935,-183.9091188,0.00024821,2]
[328922459,1717996233945,-324.06922767,0.00024821,2]
[328922460,1717996233955,-500.0,0.00024899,2]
[328922461,1717996233965,-500.0,0.00024899,2]
[328922462,1717996233974,-350.93741558,0.00024899,2]
[328922463,1717996233984,-151.84640407,0.00024899,2]
[328922464,1717996233997,-158.32811769,0.00024899,2]
[328922465,1717996234071,-341.67188231,0.00024899,2]
[328922466,1717996234081,-500.0,0.00024899,2]
[328922467,1717996234091,-154.58449466,0.00024899,2]
[328922468,1717996234102,-3193.35371182,0.000249,2]
[328922469,1717996234113,-453.51,0.000249,2]
[328922470,1717996234135,-277.94262863,0.000249,2]
[328922471,1717996234147,-2121.37763752,0.000249,2]
[328922472,1717996234159,-466.63551131,0.000249,2]
[328922473,1717996234172,-3172.60248449,0.000249,2]
[328922474,1717996234184,-514.69593955,0.000249,2]
[328922475,1717996234196,-7211.0,0.000249,2]
[328922476,1717996234208,-361.15,0.000249,2]
[328922477,1717996234219,-10985.84233229,0.000249,2]
[328922478,1717996234251,-4253.28735301,0.000249,2]
[328922479,1717996234263,-367.67329241,0.000249,2]
[328922480,1717996234274,-5401.15748693,0.000249,2]
[328922492,1717996238372,-846.30282895,0.000249,2]
[328922493,1717996238519,-450.89332225,0.000249,2]
[328922494,1717996238534,-272.32466048,0.000249,2]
[328922495,1717996238549,-261.10428232,0.000249,2]
[328922496,1717996238561,-311.52431205,0.000249,2]
[328922497,1717996238594,-68885.91814235,0.000249,2]
[328922498,1717996238802,-0.11275033,0.000249,2]
[328922499,1717996239148,-1525.21328915,0.000249,2]
[328922506,1717996242207,-956.44,0.00023718,2]
[328922507,1717996242217,-261.45072931,0.000249,2]
[328922508,1717996242330,-3013.53357169,0.000249,2]
[328922509,1717996242342,-691.9518319,0.000249,2]
[328922510,1717996242471,-2213.63470269,0.000249,2]
[328922511,1717996242483,-31900.85029348,0.000249,2]
[328922549,1717996247129,-1026.00925602,0.000249,2]
[328922550,1717996247419,-5829.16118852,0.000249,2]
[328922556,1717996327707,2291.0,0.0003,90]
[328922559,1717996511572,-1067.75598538,0.00017238,2]
[328922560,1717996511597,-209.52678916,0.00017238,2]
[328922561,1717996511622,-155.0,0.00017239,2]
[328922562,1717996511647,-155.0,0.00017239,2]
[328922563,1717996511671,-155.0,0.00017239,2]
[328922564,1717996511695,-506.80366576,0.0001724,2]
[328922565,1717996511718,-155.0,0.0001724,2]
[328922566,1717996511742,-155.0,0.00017241,2]
[328922567,1717996511765,-155.0,0.00017242,2]
[328922568,1717996511790,-645.83379313,0.00017243,2]
[328922569,1717996511816,-263.84998264,0.00017244,2]
[328922570,1717996511840,-163.30089533,0.00017244,2]
[328922571,1717996511864,-531.15011943,0.00017249,2]
[328922572,1717996511888,-2825.52607724,0.00017254,2]
[328922573,1717996511913,-155.0,0.00017258,2]
[328922574,1717996511937,-478.9789901,0.00019,2]
[328922575,1717996511961,-466.42423923,0.00019448,2]
[328922576,1717996511986,-453.58696588,0.00019448,2]
[328922577,1717996512012,-346.51504199,0.00019448,2]
[328922578,1717996512037,-719.55136828,0.00019448,2]
[328922579,1717996512063,-208.01434087,0.00019449,2]
[328922580,1717996512090,-4731.33378392,0.00019449,2]
[328922581,1717996512115,-1618.85939652,0.0001945,2]
[328922582,1717996512140,-546.77712073,0.0001945,2]
[328922583,1717996512166,-167.66351036,0.0001945,2]
[328922584,1717996512189,-292.072431,0.0001945,2]
[328922585,1717996512214,-306.83882072,0.0001945,2]
[328922586,1717996512238,-1169.7121639,0.0001945,2]
[328922587,1717996512263,-221.41495237,0.0001945,2]
[328922588,1717996512287,-156.7081457,0.0001945,2]
[328922589,1717996512316,-1958.65186394,0.0001945,2]
[328922590,1717996512341,-491.80119258,0.0001945,2]
[328922591,1717996512367,-156.51119061,0.0001945,2]
[328922592,1717996512391,-308.6533337,0.0001945,2]
[328922593,1717996512415,-2442.72890901,0.0001945,2]
[328922594,1717996512439,-155.16730935,0.0001945,2]
[328922595,1717996512463,-200.31301751,0.0001945,2]
[328922596,1717996512487,-1312.15720229,0.0001945,2]
[328922597,1717996512514,-205.8409229,0.0001945,2]
[328922598,1717996512538,-341.9089225,0.0001945,2]
[328922599,1717996512563,-268.60222202,0.0001945,2]
[328922600,1717996512588,-551.38854543,0.0001945,2]
[328922601,1717996512614,-1548.30423127,0.0001945,2]
[328922602,1717996512638,-791.96732947,0.0001945,2]
[328922603,1717996512664,-189.34506203,0.0001945,2]
[328922604,1717996512689,-187.86689308,0.0001945,2]
[328922605,1717996512713,-155.50315678,0.0001945,2]
[328922606,1717996512737,-155.00002669,0.00019451,2]
[328922607,1717996512761,-293.74704525,0.00019451,2]
[328922608,1717996512785,-162.25,0.00019794,2]
[328922609,1717996513073,155.0,0.00017237,2]
[328922610,1717996524068,286.15829546,0.00017259,2]
[328922611,1717996524698,239.50790032,0.00019451,2]
[328922612,1717996525042,828.56688318,0.00019451,2]
[328922613,1717996525396,623.92624027,0.00019451,2]
[328922614,1717996525643,155.0,0.00017259,2]
[328922615,1717996526388,158.03447952,0.00019451,2]
[328922616,1717996526600,156.93048177,0.00017259,2]
[328922617,1717996526713,418.82361807,0.00019451,2]
[328922618,1717996528200,492.32096465,0.00019451,2]
[328922619,1717996528729,155.78519868,0.00019451,2]
[328922620,1717996528870,645.17849683,0.00019451,2]
[328922621,1717996530560,162.78509319,0.00019451,2]
[328922622,1717996531397,210.09854251,0.00019451,2]
[328922623,1717996531623,155.75758417,0.00019451,2]
[328922624,1717996536045,155.0,0.00019451,2]
[328922625,1717996537808,1047.27117705,0.00017237,2]
[328922626,1717996546713,34990.43673441,0.00017237,2]
[328922627,1717996547096,1042.87918512,0.00017237,2]
[328922628,1717996554051,155.45314431,0.00019725,2]
[328922629,1717996555803,1047.27117705,0.00017237,2]
[328922630,1717996562720,23769.95332903,0.00017237,2]
[328922631,1717996563101,1042.87918512,0.00017237,2]
[328922632,1717996575812,841.31146831,0.00017237,2]
[328922633,1717996581111,1042.87918512,0.00017237,2]
[328922636,1717996595107,1042.87918512,0.00017237,2]
[328922637,1717996613110,1042.87918512,0.00017237,2]
[328922639,1717996621766,179.76,0.00016712,2]
[328922640,1717996628005,7726.64,0.00023073,60]
[328922641,1717996629114,1042.87918512,0.00017237,2]
[328922642,1717996703626,1042.87918512,0.00017237,2]
[328922643,1717996717615,1042.87918512,0.00017237,2]
[328922644,1717996734987,182.13,0.00018436,2]
[328922645,1717996735621,771.4092218,0.00017237,2]
[328922646,1717996890515,3472.76529398,0.00029899,120]
[328922647,1717996928972,1090.0,0.00029,120]
[328922648,1717996961712,3125.48876458,0.00029899,120]
[328922650,1717997054673,198.46,0.0002848,120]
[328922651,1717997358725,182.13,0.00018206,2]
[328922656,1717997432277,-226.69645122,0.000201,2]
[328922657,1717997432287,-1029.60607256,0.00021024,2]
[328922658,1717997432297,-835.14085943,0.00021042,2]
[328922659,1717997432636,-176.19914057,0.00021042,2]
[328922660,1717997432647,-250.375,0.00021124,2]
[328922661,1717997432657,-205.564,0.00021124,2]
[328922662,1717997432667,-627.312,0.00021124,2]
[328922663,1717997432677,-545.0,0.00021124,2]
[328922664,1717997432687,-3173.0,0.00021124,2]
[328922665,1717997432696,-314.024,0.00021124,2]
[328922666,1717997432705,-1471.0,0.00021124,2]
[328922667,1717997432715,-8776.053,0.00021124,2]
[328922668,1717997432725,-301.351,0.00021124,2]
[328922669,1717997432735,-443.697,0.00021124,2]
[328922670,1717997432745,-619.081,0.00021124,2]
[328922671,1717997432758,-920.36404953,0.00021519,2]
[328922672,1717997432768,-175.91,0.00022039,2]
[328922673,1717997432778,-499.99,0.00022109,2]
[328922674,1717997432788,-185.81,0.00022109,2]
[328922675,1717997432798,-842.47,0.00022109,2]
[328922676,1717997432807,-751.9104142,0.00022408,2]
[328922677,1717997432817,-1029.60607255,0.0002248,3]
[328922678,1717997432827,-4581.6293,0.0002258,2]
[328922679,1717997432837,-500.0,0.00022602,2]
[328922680,1717997432846,-500.0,0.00022602,2]
[328922681,1717997432857,-200.0,0.00022711,2]
[328922682,1717997432867,-23900.0,0.00022734,2]
[328922683,1717997432876,-1000.0,0.00022747,2]
[328922684,1717997432886,-161.11,0.00022767,2]
[328922685,1717997432897,-200.0,0.00022767,2]
[328922686,1717997432907,-198.46,0.00022784,2]
[328922687,1717997432916,-165.83,0.00022816,2]
[328922688,1717997432926,-2667.61,0.00022847,2]
[328922689,1717997432936,-663.07,0.0002296,2]
[328922690,1717997432946,-250.0,0.00022999,2]
[328922691,1717997432956,-250.0,0.00023049,2]
[328922692,1717997432965,-226.0,0.00023058,2]
[328922693,1717997432976,-2138.0,0.000231,3]
[328922694,1717997432985,-1011.34,0.00023306,2]
[328922695,1717997432995,-178.46,0.00023604,2]
[328922696,1717997433004,-1304.75816031,0.00023653,2]
[328922697,1717997433014,-500.0,0.00023698,2]
[328922698,1717997433023,-160.697,0.000239,2]
[328922699,1717997433033,-184.95,0.00024384,2]
[328922700,1717997433043,-157.3,0.00024384,2]
[328922701,1717997433052,-382.84586015,0.00024499,2]
[328922702,1717997433062,-352.10173479,0.00024598,2]
[328922703,1717997433072,-255.47925675,0.00024649,2]
[328922704,1717997433081,-150.0,0.0002466,2]
[328922705,1717997433091,-3093.31444972,0.0002466,14]
[328922706,1717997433100,-167.55,0.00024742,2]
[328922707,1717997433110,-380.26,0.0002479,3]
[328922708,1717997433120,-500.0,0.00024794,2]
[328922709,1717997433130,-2512.55825765,0.00024798,2]
[328922710,1717997433139,-1347.77446037,0.00024799,2]
[328922711,1717997433149,-1000.0,0.000248,2]
[328922712,1717997433159,-14714.964,0.000248,2]
[328922713,1717997433171,-1019.0077,0.000248,2]
[328922714,1717997433181,-76663.6619,0.000248,2]
[328922715,1717997433191,-500.0,0.00024895,2]
[328922717,1717997433200,-500.0,0.00024895,2]
[328922718,1717997433210,-240.8841959,0.00024895,2]
[328922719,1717997433220,-155.30587344,0.00024896,2]
[328922720,1717997433229,-346.17560194,0.00024896,2]
[328922721,1717997433239,-338.29816075,0.00024896,2]
[328922722,1717997433249,-269.07320624,0.00024896,2]
[328922723,1717997433259,-10970.15287954,0.00024896,2]
[328922724,1717997433269,-239.79550489,0.00024896,2]
[328922725,1717997433278,-524.4208755,0.00024896,2]
[328922726,1717997433289,-1316.94661362,0.00024896,2]
[328922727,1717997433299,-3046.30922724,0.00024896,2]
[328922728,1717997433308,-1000.0,0.00024896,2]
[328922729,1717997433319,-788.56711512,0.00024896,2]
[328922730,1717997433328,-1000.0,0.00024896,2]
[328922731,1717997433338,-218.1552576,0.00024896,2]
[328922732,1717997433348,-157.13383188,0.00024896,2]
[328922733,1717997433357,-2386.00563136,0.00024896,2]
[328922734,1717997433367,-266.86715831,0.00024896,2]
[328922735,1717997433377,-350.33069042,0.00024896,2]
[328922736,1717997433386,-524.84526053,0.00024896,2]
[328922738,1717997433398,-156.7012365,0.00024896,2]
[328922740,1717997433407,-649.34168046,0.00024896,2]
[328922742,1717997433417,-638.95398189,0.00024896,2]
[328922744,1717997433427,-155.41724428,0.00024896,2]
[328922746,1717997433437,-156.833096,0.00024896,2]
[328922748,1717997433447,-2417.64410478,0.00024896,2]
[328922750,1717997433457,-436.22788795,0.00024896,2]
[328922752,1717997433467,-215.95453193,0.00024897,2]
[328922754,1717997433477,-2821.19405743,0.00024897,2]
[328922756,1717997433488,-861.30330249,0.00024898,2]
[328922758,1717997433498,-35504.94626586,0.00024899,2]
[328922760,1717997433508,-3000.0,0.000249,2]
[328922762,1717997433518,-1393.05840707,0.00025,2]
[328922764,1717997433529,-500.0,0.00025,2]
[328922765,1717997433539,-929.52174178,0.00025,2]
[328922767,1717997433550,-155.96972793,0.00025,2]
[328922770,1717997433560,-14490.1753457,0.00025,2]
[328922772,1717997433570,-1250.0,0.00025,2]
[328922773,1717997433579,-1277.21264975,0.00025,2]
[328922776,1717997433590,-200.0,0.0002503,2]
[328922778,1717997433600,-160.697,0.00025154,2]
[328922780,1717997433610,-172.67,0.00025161,2]
[328922782,1717997433621,-2512.55825758,0.00025362,2]
[328922784,1717997433631,-1347.77446033,0.00025362,2]
[328922786,1717997433641,-151.0,0.0002539,5]
[328922788,1717997433652,-550.2516604,0.000255,2]
[328922790,1717997433662,-1011.34,0.0002557,2]
[328922792,1717997433672,-4897.47,0.00025576,2]
[328922794,1717997433682,-2667.61,0.00025587,2]
[328922796,1717997433693,-1000.0,0.00025591,2]
[328922798,1717997433703,-500.0,0.0002589,2]
[328922800,1717997433713,-2512.55825758,0.00025929,2]
[328922802,1717997433723,-1347.77446033,0.00025929,2]
[328922803,1717997433733,-23534.25625495,0.00026,5]
[328922804,1717997433743,-2023.0,0.00026,10]
[328922805,1717997433757,-150.67254313,0.00026005,2]
[328922806,1717997433767,-154.83847404,0.0002601,2]
[328922807,1717997433777,-170.13002976,0.00026042,2]
[328922808,1717997433786,-154.83847404,0.00026042,2]
[328922809,1717997433797,-211.07852721,0.00026058,2]
[328922810,1717997433807,-291.9613718,0.00026062,2]
[328922811,1717997433816,-156.91116897,0.00026066,2]
[328922812,1717997433828,-291.9613718,0.00026067,2]
[328922813,1717997433838,-152.06549957,0.00026074,2]
[328922814,1717997433848,-291.9613718,0.0002608,2]
[328922815,1717997433858,-480.02139025,0.00026084,2]
[328922816,1717997433868,-166.58250168,0.00026086,2]
[328922817,1717997433878,-156.91116897,0.00026087,2]
[328922818,1717997433888,-211.07852721,0.00026107,2]
[328922819,1717997433899,-150.67254313,0.00026123,2]
[328922820,1717997433909,-150.67254313,0.00026144,2]
[328922821,1717997433919,-154.83847404,0.00026154,2]
[328922822,1717997433928,-150.67254313,0.00026163,2]
[328922823,1717997433938,-154.93937304,0.00026181,2]
[328922824,1717997433948,-154.93937304,0.00026189,2]
[328922825,1717997433957,-152.06549957,0.0002619,2]
[328922826,1717997433966,-156.91116897,0.00026192,2]
[328922827,1717997433987,-156.91116897,0.00026197,2]
[328922828,1717997433997,-154.97867953,0.00026207,2]
[328922829,1717997434008,-4871.22,0.00026225,2]
[328922830,1717997434018,-152.06549957,0.00026244,2]
[328922831,1717997434028,-154.57504038,0.00026248,2]
[328922832,1717997434039,-480.02139025,0.00026277,2]
[328922833,1717997434050,-154.83847404,0.00026286,2]
[328922834,1717997434060,-151.0,0.00026312,7]
[328922835,1717997434070,-156.91116897,0.00026336,2]
[328922836,1717997434080,-150.67254313,0.00026339,2]
[328922837,1717997434091,-291.9613718,0.00026404,2]
[328922838,1717997434101,-211.07852721,0.00026417,2]
[328922839,1717997434112,-155.29833662,0.00026434,2]
[328922840,1717997434122,-154.93937304,0.00026447,2]
[328922841,1717997434134,-156.91116897,0.00026479,2]
[328922842,1717997434144,-150.67254313,0.00026484,2]
[328922843,1717997434154,-2512.55825758,0.00026497,2]
[328922844,1717997434163,-1347.77446033,0.00026497,2]
[328922845,1717997434173,-500.0,0.000265,2]
[328922846,1717997434183,-500.0,0.000265,2]
[328922847,1717997434193,-500.0,0.000265,2]
[328922848,1717997434203,-500.0,0.000265,2]
[328922849,1717997434214,-500.0,0.000265,2]
[328922850,1717997434224,-500.0,0.000265,2]
[328922851,1717997434234,-245.58433881,0.00026522,2]
[328922852,1717997434244,-150.67254313,0.00026538,2]
[328922853,1717997434254,-160.697,0.00026541,2]
[328922854,1717997434264,-156.91116897,0.00026563,2]
[328922855,1717997434274,-211.07852721,0.00026572,2]
[328922856,1717997434285,-161.72070099,0.00026575,2]
[328922857,1717997434295,-291.9613718,0.00026576,2]
[328922858,1717997434305,-156.91116897,0.00026582,2]
[328922859,1717997434315,-1000.0,0.00026622,2]
[328922860,1717997434325,-1000.0,0.00026622,2]
[328922861,1717997434335,-1000.0,0.00026622,2]
[328922862,1717997434345,-1000.0,0.00026622,2]
[328922863,1717997434355,-1000.0,0.00026622,2]
[328922864,1717997434365,-1000.0,0.00026622,2]
[328922865,1717997434376,-1000.0,0.00026622,2]
[328922866,1717997434387,-1000.0,0.00026622,2]
[328922867,1717997434397,-1000.0,0.00026622,2]
[328922868,1717997434407,-1000.0,0.00026622,2]
[328922869,1717997434418,-1000.0,0.00026622,2]
[328922870,1717997434428,-1000.0,0.00026622,2]
[328922871,1717997434439,-1000.0,0.00026622,2]
[328922872,1717997434449,-1000.0,0.00026622,2]
[328922873,1717997434460,-1000.0,0.00026622,2]
[328922874,1717997434471,-1000.0,0.00026622,2]
[328922875,1717997434481,-1000.0,0.00026622,2]
[328922876,1717997434492,-1023.0,0.00026622,2]
[328922877,1717997434502,-1000.0,0.00026622,2]
[328922878,1717997434513,-1000.0,0.00026622,2]
[328922879,1717997434524,-436.0,0.00026622,2]
[328922880,1717997434534,-480.02139025,0.00026632,2]
[328922881,1717997434545,-154.57504038,0.0002665,2]
[328922882,1717997434555,-154.83847404,0.00026652,2]
[328922883,1717997434565,-600.0,0.00026659,2]
[328922884,1717997434575,-211.07852721,0.00026677,2]
[328922885,1717997434585,-150.67254313,0.00026679,2]
[328922886,1717997434595,-291.9613718,0.00026702,2]
[328922887,1717997434606,-291.9613718,0.00026748,2]
[328922888,1717997434616,-480.02139025,0.00026779,2]
[328922889,1717997434626,-166.66666666,0.0002678,2]
[328922890,1717997434636,-154.57504038,0.00026804,2]
[328922891,1717997434647,-155.79037047,0.00026804,2]
[328922892,1717997434657,-155.29833662,0.0002683,2]
[328922893,1717997434666,-156.91116897,0.00026837,2]
[328922894,1717997434676,-154.93937304,0.00026837,2]
[328922895,1717997434686,-154.83847404,0.00026842,2]
[328922896,1717997434695,-166.61915988,0.0002686,2]
[328922897,1717997434705,-155.29833662,0.00026877,2]
[328922898,1717997434715,-211.07852721,0.00026926,2]
[328922899,1717997434725,-480.02139025,0.00026943,2]
[328922900,1717997434735,-161.72070099,0.00026962,2]
[328922901,1717997434746,-155.29833662,0.00026982,2]
[328922902,1717997434758,-500.0,0.00026986,2]
[328922903,1717997434768,-291.9613718,0.00026992,2]
[328922904,1717997434778,-480.02139025,0.00026994,2]
[328922905,1717997434788,-480.02139025,0.00026999,2]
[328922906,1717997434798,-435.85096148,0.00027,2]
[328922907,1717997434808,-1300.0,0.00027,2]
[328922908,1717997434818,-150.0,0.00027,2]
[328922909,1717997434828,-200.0,0.00027,2]
[328922910,1717997434838,-154.57504038,0.00027001,2]
[328922911,1717997434848,-480.02139025,0.00027007,2]
[328922912,1717997434858,-156.91116897,0.0002701,2]
[328922913,1717997434868,-154.57504038,0.00027031,2]
[328922914,1717997434878,-245.58433877,0.00027037,2]
[328922915,1717997434888,-2512.55825758,0.00027064,2]
[328922916,1717997434899,-1347.77446033,0.00027064,2]
[328922917,1717997434910,-154.93937304,0.00027069,2]
[328922918,1717997434920,-170.13002976,0.00027072,2]
[328922919,1717997434930,-166.61915988,0.00027087,2]
[328922920,1717997434940,-152.06549957,0.00027088,2]
[328922921,1717997434951,-150.0,0.0002709,2]
[328922922,1717997434961,-154.83847404,0.0002709,2]
[328922923,1717997434971,-155.29833662,0.00027092,2]
[328922924,1717997434981,-480.02139025,0.00027101,2]
[328922925,1717997434991,-152.06549957,0.00027108,2]
[328922926,1717997435002,-170.13002976,0.0002712,2]
[328922927,1717997435012,-150.67254313,0.00027138,2]
[328922928,1717997435022,-291.9613718,0.00027151,2]
[328922929,1717997435032,-211.07852721,0.00027177,2]
[328922930,1717997435042,-159.41236589,0.0002718,2]
[328922931,1717997435052,-211.07852721,0.00027182,2]
[328922932,1717997435062,-2011.37343874,0.000272,2]
[328922933,1717997435073,-355686.07585168,0.000272,2]
[328922934,1717997435083,-211.07852721,0.00027223,2]
[328922935,1717997435094,-4843.19,0.00027227,2]
[328922936,1717997435105,-155.79037047,0.00027233,2]
[328922937,1717997435115,-151.0,0.00027234,7]
[328922938,1717997435126,-480.02139025,0.00027238,2]
[328922939,1717997435136,-154.57504038,0.00027271,2]
[328922940,1717997435147,-291.9613718,0.00027271,2]
[328922941,1717997435157,-159.62291377,0.00027283,2]
[328922942,1717997435166,-156.91116897,0.00027286,2]
[328922943,1717997435176,-154.93937304,0.00027288,2]
[328922944,1717997435185,-152.06549957,0.0002731,2]
[328922945,1717997435195,-211.07852721,0.00027314,2]
[328922946,1717997435204,-161.11,0.0002732,2]
[328922947,1717997435214,-480.02139025,0.00027324,2]
[328922948,1717997435224,-480.02139025,0.00027335,2]
[328922949,1717997435234,-155.29833662,0.00027338,2]
[328922950,1717997435244,-291.9613718,0.0002735,2]
[328922951,1717997435254,-211.07852721,0.00027358,2]
[328922952,1717997435264,-802.23488795,0.0002739,2]
[328922953,1717997435274,-500.0,0.00027397,2]
[328922954,1717997435283,-500.0,0.00027397,2]
[328922955,1717997435293,-530.0,0.00027397,2]
[328922956,1717997435302,-152.22,0.00027397,2]
[328922957,1717997435312,-2486.05012708,0.000274,2]
[328922958,1717997435322,-1331.03772474,0.000274,2]
[328922959,1717997435332,-154.97867953,0.00027407,2]
[328922960,1717997435341,-480.02139025,0.00027418,2]
[328922961,1717997435351,-154.83847404,0.00027427,2]
[328922962,1717997435360,-291.9613718,0.00027434,2]
[328922963,1717997435370,-159.41236589,0.00027437,2]
[328922964,1717997435379,-104158.21674647,0.000275,2]
[328922965,1717997435396,-221181.65928962,0.000275,2]
[328922966,1717997435424,-246.03,0.00027397,10]
[328922967,1717997435434,-8931.91540166,0.000275,2]
[328922970,1717997438136,-600.0,0.00021124,2]
[328922971,1717997438520,-676.012,0.00021124,2]
[328922972,1717997438531,-2534.78591008,0.000275,2]
[328922973,1717997438740,-5697.83410849,0.000275,2]
[328922974,1717997440937,-949704.34266268,0.000275,2]
[328922975,1717997440948,-154.57504038,0.00027507,2]
[328922976,1717997440958,-156.91116897,0.00027513,2]
[328922977,1717997440970,-291.9613718,0.00027529,2]
[328922978,1717997440980,-159.4123659,0.00027531,2]
[328922979,1717997440991,-150.0,0.00027534,2]
[328922980,1717997441001,-154.83847404,0.00027544,2]
[328922982,1717997441012,-1303.404488,0.00027546,2]
[328922984,1717997441022,-1619.388384,0.00027546,2]
[328922985,1717997441033,-180.048858,0.00027546,2]
[328922987,1717997441043,-180.851125,0.00027546,2]
[328922989,1717997441053,-1328.424773,0.00027546,2]